fUST/lending_fUST_20260114
["ID","MTS","AMOUNT","RATE_DAILY","PERIOD"]
[401880788,1768395043152,-500.0,0.00013698,2]
[401880790,1768395043162,-500.0,0.00013698,2]
[401880792,1768395043171,-500.0,0.00013698,2]
[401880794,1768395043181,-500.0,0.00013698,2]
[401880795,1768395043190,-500.0,0.00013698,2]
[401880797,1768395043199,-500.0,0.00013698,2]
[401880800,1768395043209,-500.0,0.00013698,2]
[401880801,1768395043218,-500.0,0.00013698,2]
[401880804,1768395043227,-500.0,0.00013698,2]
[401880806,1768395043236,-500.0,0.00013698,2]
[401880808,1768395043246,-500.0,0.00013698,2]
[401880810,1768395043255,-500.0,0.00013698,2]
[401880812,1768395043265,-500.0,0.00013698,2]
[401880814,1768395043275,-500.0,0.00013698,2]
[401880816,1768395043285,-500.0,0.00013698,2]
[401880818,1768395043294,-500.0,0.00013698,2]
[401880820,1768395043303,-500.0,0.00013698,2]
[401880822,1768395043312,-500.0,0.00013698,2]
[401880824,1768395043321,-500.0,0.00013698,2]
[401880826,1768395043331,-516.10527878,0.00013698,2]
[401880828,1768395043340,-500.0,0.00013698,2]
[401880829,1768395043349,-500.0,0.00013698,2]
[401880832,1768395043359,-500.0,0.00013698,2]
[401880833,1768395043368,-453.8287473,0.00013698,2]
[401880835,1768395043377,-1000.0,0.00013698,2]
[401880837,1768395043386,-1000.0,0.00013698,2]
[401880840,1768395043396,-1000.0,0.00013698,2]
[401880842,1768395043405,-1000.0,0.00013698,2]
[401880843,1768395043415,-1000.0,0.00013698,2]
[401880845,1768395043425,-1000.0,0.00013698,2]
[401880847,1768395043435,-1000.0,0.00013698,2]
[401880850,1768395043444,-1017.75755303,0.00013698,2]
[401880852,1768395043454,-518.87817295,0.00013698,2]
[401880854,1768395043463,-525.94,0.00013698,2]
[401880856,1768395043472,-525.94,0.00013698,2]
[401880858,1768395043482,-525.94,0.00013698,2]
[401880860,1768395043491,-525.94,0.00013698,2]
[401880862,1768395043501,-525.94,0.00013698,2]
[401880864,1768395043510,-525.94,0.00013698,2]
[401880866,1768395043519,-525.94,0.00013698,2]
[401880868,1768395043528,-525.94,0.00013698,2]
[401880869,1768395043538,-525.94,0.00013698,2]
[401880871,1768395043547,-525.94,0.00013698,2]
[401880873,1768395043555,-525.94,0.00013698,2]
[401880874,1768395043565,-525.94,0.00013698,2]
[401880876,1768395043573,-525.94,0.00013698,2]
[401880878,1768395043583,-525.94,0.00013698,2]
[401880881,1768395043592,-525.94,0.00013698,2]
[401880884,1768395043602,-525.94,0.00013698,2]
[401880886,1768395043611,-525.94,0.00013698,2]
[401880888,1768395043620,-525.94,0.00013698,2]
[401880890,1768395043629,-525.94,0.00013698,2]
[401880892,1768395043638,-525.94,0.00013698,2]
[401880894,1768395043647,-525.94,0.00013698,2]
[401880895,1768395043657,-525.94,0.00013698,2]
[401880897,1768395043666,-525.94,0.00013698,2]
[401880899,1768395043675,-526.04678427,0.00013698,2]
[401880901,1768395043684,-1593.3,0.00013698,2]
[401880903,1768395043693,-1593.3,0.00013698,2]
[401880905,1768395043704,-1593.3,0.00013698,2]
[401880907,1768395043713,-1593.3,0.00013698,2]
[401880909,1768395043722,-1593.3,0.00013698,2]
[401880911,1768395043731,-1593.3,0.00013698,2]
[401880913,1768395043740,-1593.3,0.00013698,2]
[401880915,1768395043749,-1593.3,0.00013698,2]
[401880917,1768395043758,-1593.3,0.00013698,2]
[401880919,1768395043768,-1593.3,0.00013698,2]
[401880921,1768395043777,-1593.3,0.00013698,2]
[401880923,1768395043786,-1593.3,0.00013698,2]
[401880925,1768395043795,-1593.3,0.00013698,2]
[401880927,1768395043807,-1593.3,0.00013698,2]
[401880929,1768395043817,-1593.3,0.00013698,2]
[401880931,1768395043826,-1593.3,0.00013698,2]
[401880933,1768395043837,-1593.3,0.00013698,2]
[401880935,1768395043848,-1593.3,0.00013698,2]
[401880937,1768395043857,-1593.3,0.00013698,2]
[401880939,1768395043866,-1593.3,0.00013698,2]
[401880941,1768395043875,-1593.3,0.00013698,2]
[401880943,1768395043886,-1593.3,0.00013698,2]
[401880945,1768395043895,-1593.3,0.00013698,2]
[401880947,1768395043903,-1593.3055421,0.00013698,2]
[401880949,1768395043913,-500.0,0.00013698,2]
[401880951,1768395043922,-500.0,0.00013698,2]
[401880953,1768395043931,-500.0,0.00013698,2]
[401880955,1768395043941,-500.0,0.00013698,2]
[401880957,1768395043950,-500.0,0.00013698,2]
[401880959,1768395043960,-500.0,0.00013698,2]
[401880960,1768395043969,-500.0,0.00013698,2]
[401880962,1768395043978,-500.0,0.00013698,2]
[401880964,1768395043987,-500.0,0.00013698,2]
[401880966,1768395043996,-500.0,0.00013698,2]
[401880968,1768395044006,-260.74557216,0.00013698,2]
[401880970,1768395044015,-504.29229129,0.00013698,2]
[401880972,1768395044025,-500.0,0.00013698,2]
[401880974,1768395044034,-500.0,0.00013698,2]
[401880976,1768395044043,-500.0,0.00013698,2]
[401880978,1768395044053,-559.52204836,0.00013698,2]
[401880980,1768395044061,-500.0,0.00013698,2]
[401880982,1768395044072,-500.0,0.00013698,2]
[401880984,1768395044081,-500.0,0.00013698,2]
[401880986,1768395044090,-500.0,0.00013698,2]
[401880988,1768395044099,-500.0,0.00013698,2]
[401880990,1768395044108,-2258.255079,0.00013699,2]
[401880992,1768395044118,-500.0,0.00013699,2]
[401880994,1768395044127,-500.64767098,0.00013699,2]
[401880996,1768395044136,-500.0,0.00013699,2]
[401880998,1768395044146,-500.0,0.00013699,2]
[401881000,1768395044155,-500.0,0.00013699,2]
[401881002,1768395044165,-506.34451005,0.00013699,2]
[401881004,1768395044175,-500.0,0.00013699,2]
[401881006,1768395044184,-500.0,0.00013699,2]
[401881008,1768395044193,-500.0,0.00013699,2]
[401881010,1768395044203,-500.0,0.00013699,2]
[401881012,1768395044212,-500.0,0.00013699,2]
[401881014,1768395044221,-500.0,0.00013699,2]
[401881016,1768395044230,-500.0,0.00013699,2]
[401881018,1768395044239,-500.0,0.00013699,2]
[401881020,1768395044249,-504.50322617,0.00013699,2]
[401881022,1768395044259,-500.0,0.00013699,2]
[401881024,1768395044268,-500.0,0.00013699,2]
[401881026,1768395044278,-500.0,0.00013699,2]
[401881028,1768395044287,-500.0,0.00013699,2]
[401881030,1768395044296,-500.0,0.00013699,2]
[401881031,1768395044306,-526.2087109,0.00013699,2]
[401881034,1768395044318,-500.0,0.00013699,2]
[401881035,1768395044327,-500.0,0.00013699,2]
[401881037,1768395044336,-500.0,0.00013699,2]
[401881039,1768395044349,-500.0,0.00013699,2]
[401881042,1768395044358,-500.28466628,0.00013699,2]
[401881044,1768395044368,-500.0,0.00013699,2]
[401881046,1768395044377,-500.91728774,0.00013699,2]
[401881048,1768395044387,-500.0,0.00013699,2]
[401881050,1768395044396,-501.74975073,0.00013699,2]
[401881052,1768395044405,-500.0,0.00013699,2]
[401881053,1768395044414,-500.0,0.00013699,2]
[401881056,1768395044424,-500.0,0.00013699,2]
[401881057,1768395044433,-500.0,0.00013699,2]
[401881060,1768395044443,-500.0,0.00013699,2]
[401881061,1768395044453,-500.0,0.00013699,2]
[401881063,1768395044463,-500.0,0.00013699,2]
[401881065,1768395044472,-500.0,0.00013699,2]
[401881067,1768395044481,-413.79090585,0.00013699,2]
[401881069,1768395044491,-500.0,0.00013699,2]
[401881072,1768395044500,-500.0,0.00013699,2]
[401881076,1768395044510,-500.0,0.00013699,2]
[401881079,1768395044520,-500.0,0.00013699,2]
[401881080,1768395044529,-500.0,0.00013699,2]
[401881082,1768395044539,-500.0,0.00013699,2]
[401881085,1768395044548,-500.0,0.00013699,2]
[401881087,1768395044558,-500.0,0.00013699,2]
[401881089,1768395044567,-500.0,0.00013699,2]
[401881090,1768395044576,-500.0,0.00013699,2]
[401881092,1768395044585,-2000.0,0.00013699,7]
[401881095,1768395044596,-500.0,0.00013699,2]
[401881097,1768395044605,-500.0,0.00013699,2]
[401881099,1768395044614,-252.90578758,0.00013699,2]
[401881101,1768395044623,-301.86126485,0.00013699,2]
[401881103,1768395044634,-370.92368598,0.00013699,2]
[401881105,1768395044644,-500.0,0.00013699,2]
[401881107,1768395044655,-501.05002058,0.00013699,2]
[401881109,1768395044665,-500.0,0.00013699,2]
[401881111,1768395044675,-500.0,0.00013699,2]
[401881113,1768395044684,-500.0,0.00013699,2]
[401881115,1768395044693,-500.0,0.00013699,2]
[401881117,1768395044702,-500.0,0.00013699,2]
[401881119,1768395044711,-500.0,0.00013699,2]
[401881121,1768395044721,-500.0,0.00013699,2]
[401881123,1768395044730,-501.1212268,0.00013699,2]
[401881125,1768395044739,-500.0,0.00013699,2]
[401881127,1768395044747,-500.0,0.00013699,2]
[401881129,1768395044758,-500.0,0.00013699,2]
[401881131,1768395044766,-500.0,0.00013699,2]
[401881133,1768395044776,-500.0,0.00013699,2]
[401881135,1768395044784,-433.32498894,0.00013699,2]
[401881137,1768395044793,-10000.0,0.00013735,2]
[401881139,1768395044804,-10000.0,0.00013735,2]
[401881141,1768395044816,-4343.48,0.00013735,2]
[401881143,1768395044825,-5765.24097239,0.0001376,2]
[401881145,1768395044834,-1549.64,0.00013763,2]
[401881147,1768395044845,-1015.29551893,0.00013821,2]
[401881149,1768395044854,-1000.0,0.00013821,2]
[401881152,1768395044863,-771.86141758,0.00013821,2]
[401881153,1768395044874,-1000.0,0.00013821,2]
[401881156,1768395044884,-1000.0,0.00013821,2]
[401881158,1768395044893,-1000.0,0.00013821,2]
[401881160,1768395044903,-1000.0,0.00013821,2]
[401881161,1768395044912,-1000.0,0.00013821,2]
[401881164,1768395044921,-1000.0,0.00013821,2]
[401881166,1768395044931,-1000.0,0.00013821,2]
[401881167,1768395044940,-1000.0,0.00013821,2]
[401881169,1768395044950,-1000.0,0.00013821,2]
[401881171,1768395044960,-1000.0,0.00013821,2]
[401881173,1768395044969,-1000.0,0.00013821,2]
[401881175,1768395044979,-1000.0,0.00013821,2]
[401881177,1768395044988,-386.78841051,0.00013821,2]
[401881179,1768395044997,-503.63165228,0.00013821,2]
[401881181,1768395045006,-1000.0,0.00013821,2]
[401881183,1768395045015,-1000.0,0.00013821,2]
[401881186,1768395045025,-284.00644743,0.00013821,2]
[401881187,1768395045035,-1000.0,0.00013821,2]
[401881189,1768395045044,-169.06993919,0.00013821,2]
[401881191,1768395045054,-1000.0,0.00013821,2]
[401881194,1768395045064,-1000.0,0.00013821,2]
[401881196,1768395045074,-1002.88869488,0.00013821,2]
[401881198,1768395045083,-1000.0,0.00013821,2]
[401881199,1768395045092,-1000.0,0.00013821,2]
[401881201,1768395045101,-1000.0,0.00013821,2]
[401881203,1768395045110,-502.07442824,0.00013821,2]
[401881205,1768395045120,-424.36340331,0.00013821,2]
[401881207,1768395045129,-1000.0,0.00013821,2]
[401881209,1768395045138,-1000.0,0.00013821,2]
[401881211,1768395045147,-1000.0,0.00013821,2]
[401881213,1768395045157,-440.24648614,0.00013821,2]
[401881215,1768395045167,-1000.0,0.00013821,2]
[401881217,1768395045177,-604.03491902,0.00013821,2]
[401881219,1768395045186,-1000.0,0.00013821,2]
[401881221,1768395045196,-1003.01901965,0.00013821,2]
[401881223,1768395045206,-344.64451203,0.00013821,2]
[401881225,1768395045215,-1000.0,0.00013821,2]
[401881227,1768395045224,-1000.0,0.00013821,2]
[401881229,1768395045233,-1000.0,0.00013821,2]
[401881231,1768395045242,-1000.0,0.00013821,2]
[401881233,1768395045252,-446.5684735,0.00013821,2]
[401881235,1768395045261,-1000.0,0.00013821,2]
[401881237,1768395045270,-1000.0,0.00013821,2]
[401881238,1768395045279,-150.15988072,0.00013973,2]
[401881239,1768395045288,-1000.0,0.00013992,2]
[401881240,1768395045297,-244.0,0.00013992,2]
[401881241,1768395045307,-5157.59218889,0.0001416,2]
[401881242,1768395045316,-7847.13354576,0.00014166,2]
[401881244,1768395045324,-600.0,0.00014221,2]
[401881245,1768395045333,-1000.0,0.00014247,2]
[401881246,1768395045343,-500.30863166,0.00014247,2]
[401881247,1768395045352,-1000.0,0.00014247,2]
[401881248,1768395045361,-841.41978725,0.00014247,2]
[401881249,1768395045370,-490.12767117,0.00014247,2]
[401881250,1768395045379,-1001.28209032,0.00014247,2]
[401881251,1768395045388,-1000.0,0.00014247,2]
[401881252,1768395045397,-1000.0,0.00014247,2]
[401881253,1768395045406,-1000.0,0.00014247,2]
[401881254,1768395045416,-1000.0,0.00014247,2]
[401881255,1768395045425,-1000.0,0.00014247,2]
[401881256,1768395045434,-500.62157755,0.00014247,2]
[401881257,1768395045443,-1000.0,0.00014247,2]
[401881258,1768395045453,-1000.0,0.00014247,2]
[401881259,1768395045462,-1000.0,0.00014247,2]
[401881260,1768395045472,-193.53352259,0.00014247,2]
[401881261,1768395045481,-1003.87539742,0.00014247,2]
[401881262,1768395045491,-685.95842189,0.00014247,2]
[401881263,1768395045502,-1000.0,0.00014247,2]
[401881265,1768395045511,-1000.0,0.00014247,2]
[401881267,1768395045520,-1001.31706943,0.00014247,2]
[401881269,1768395045529,-1000.0,0.00014247,2]
[401881271,1768395045540,-1000.0,0.00014247,2]
[401881273,1768395045550,-501.21795351,0.00014247,2]
[401881275,1768395045560,-501.43010395,0.00014247,2]
[401881277,1768395045569,-500.73561513,0.00014247,2]
[401881279,1768395045578,-1000.0,0.00014247,2]
[401881281,1768395045587,-1000.0,0.00014247,2]
[401881283,1768395045598,-1000.0,0.00014247,2]
[401881285,1768395045607,-919.62973898,0.00014247,2]
[401881287,1768395045616,-501.82501982,0.00014247,2]
[401881289,1768395045625,-1003.83285644,0.00014247,2]
[401881291,1768395045634,-500.65603222,0.00014247,2]
[401881293,1768395045643,-501.04290038,0.00014247,2]
[401881295,1768395045653,-250.0,0.00014247,2]
[401881296,1768395045662,-1087.16663197,0.00014247,2]
[401881298,1768395045671,-990.87296502,0.00014247,2]
[401881300,1768395045680,-1000.0,0.00014247,2]
[401881302,1768395045689,-1000.0,0.00014247,2]
[401881304,1768395045699,-1000.0,0.00014247,2]
[401881306,1768395045709,-1000.0,0.00014247,2]
[401881308,1768395045719,-1000.0,0.00014247,2]
[401881310,1768395045730,-1000.0,0.00014247,2]
[401881312,1768395045739,-1000.0,0.00014247,2]
[401881314,1768395045749,-1000.0,0.00014247,2]
[401881316,1768395045758,-519.65670355,0.00014247,2]
[401881318,1768395045768,-343.96245491,0.00014247,2]
[401881320,1768395045777,-1000.0,0.00014247,2]
[401881322,1768395045786,-1000.0,0.00014247,2]
[401881324,1768395045796,-1000.0,0.00014247,2]
[401881326,1768395045808,-1000.0,0.00014247,2]
[401881328,1768395045817,-501.3857634,0.00014247,2]
[401881330,1768395045826,-1000.0,0.00014247,2]
[401881332,1768395045835,-1000.0,0.00014247,2]
[401881334,1768395045846,-1000.0,0.00014247,2]
[401881336,1768395045856,-1000.0,0.00014247,2]
[401881338,1768395045865,-1001.20972535,0.00014247,2]
[401881340,1768395045875,-1500.0,0.00014368,2]
[401881342,1768395045884,-1355.28517105,0.00014368,2]
[401881344,1768395045893,-1500.0,0.00014368,2]
[401881346,1768395045902,-453.04414217,0.00014368,2]
[401881348,1768395045911,-1500.0,0.00014368,2]
[401881350,1768395045921,-1500.0,0.00014368,2]
[401881352,1768395045930,-1348.98491417,0.00014368,2]
[401881354,1768395045939,-1500.0,0.00014368,2]
[401881356,1768395045949,-1500.0,0.00014368,2]
[401881358,1768395045961,-153.79187063,0.00014368,2]
[401881360,1768395045970,-1623.81068567,0.00014368,2]
[401881362,1768395045979,-1500.0,0.00014368,2]
[401881364,1768395045989,-1500.0,0.00014368,2]
[401881366,1768395045998,-1003.76788333,0.00014368,2]
[401881368,1768395046008,-1500.0,0.00014368,2]
[401881371,1768395046017,-1022.04357159,0.00014368,2]
[401881373,1768395046026,-1500.0,0.00014368,2]
[401881375,1768395046036,-502.68632401,0.00014368,2]
[401881377,1768395046046,-822.79494335,0.00014368,2]
[401881379,1768395046056,-1500.0,0.00014368,2]
[401881381,1768395046066,-1500.0,0.00014368,2]
[401881383,1768395046075,-1500.0,0.00014368,2]
[401881385,1768395046085,-1500.0,0.00014368,2]
[401881387,1768395046094,-1164.35893779,0.00014368,2]
[401881389,1768395046103,-1500.0,0.00014368,2]
[401881391,1768395046113,-158.07183809,0.00014368,2]
[401881393,1768395046122,-1500.0,0.00014368,2]
[401881395,1768395046132,-1500.0,0.00014368,2]
[401881397,1768395046141,-738.47106789,0.00014368,2]
[401881399,1768395046150,-1502.99360219,0.00014368,2]
[401881401,1768395046159,-1500.0,0.00014368,2]
[401881403,1768395046169,-1500.0,0.00014368,2]
[401881405,1768395046178,-5000.0,0.0001451,2]
[401881407,1768395046187,-10249.31728425,0.0001457,2]
[401881409,1768395046196,-100000.0,0.0001459,2]
[401881411,1768395046207,-5380.85647441,0.00014595,2]
[401881413,1768395046216,-11434.83681079,0.00014695,2]
[401881415,1768395046225,-900.0,0.00014768,2]
[401881417,1768395046235,-11463.10085462,0.00014772,3]
[401881419,1768395046244,-1500.0,0.00014795,2]
[401881421,1768395046253,-1540.3270641,0.00014795,2]
[401881423,1768395046263,-1500.0,0.00014795,2]
[401881425,1768395046272,-1500.0,0.00014795,2]
[401881445,1768395046282,-559.25711422,0.00014795,2]
[401881448,1768395046471,-586.73306672,0.00014795,2]
[401881450,1768395046482,-1159.70838602,0.00014795,2]
[401881452,1768395046491,-1018.01129916,0.00014795,2]
[401881454,1768395046501,-1500.0,0.00014795,2]
[401881456,1768395046510,-1500.0,0.00014795,2]
[401881458,1768395046519,-1500.0,0.00014795,2]
[401881460,1768395046529,-1479.00156205,0.00014795,2]
[401881462,1768395046538,-1082.85856265,0.00014795,2]
[401881464,1768395046548,-1500.0,0.00014795,2]
[401881466,1768395046557,-665.99620392,0.00014795,2]
[401881468,1768395046567,-805.98884969,0.00014795,2]
[401881470,1768395046576,-622.97821503,0.00014795,2]
[401881472,1768395046586,-200.84224431,0.00014795,2]
[401881474,1768395046595,-1500.0,0.00014795,2]
[401881476,1768395046604,-1500.0,0.00014795,2]
[401881478,1768395046614,-1500.0,0.00014795,2]
[401881480,1768395046624,-522.48598281,0.00014795,2]
[401881483,1768395046634,-1051.15225971,0.00014795,2]
[401881484,1768395046643,-1500.0,0.00014795,2]
[401881486,1768395046652,-1500.0,0.00014795,2]
[401881489,1768395046662,-1500.0,0.00014795,2]
[401881492,1768395046671,-1500.0,0.00014795,2]
[401881494,1768395046680,-1500.0,0.00014795,2]
[401881496,1768395046689,-949.7291255,0.00014795,2]
[401881498,1768395046698,-1292.00440399,0.00014795,2]
[401881500,1768395046707,-1500.0,0.00014795,2]
[401881502,1768395046716,-927.69304459,0.00014795,2]
[401881504,1768395046726,-827.64226173,0.00014795,2]
[401881506,1768395046735,-1500.0,0.00014795,2]
[401881508,1768395046744,-1504.104065,0.00014848,2]
[401881510,1768395046753,-878.64680697,0.00014916,2]
[401881512,1768395046762,-2000.0,0.00014916,2]
[401881514,1768395046771,-2000.0,0.00014916,2]
[401881516,1768395046781,-1056.99110983,0.00014916,2]
[401881518,1768395046791,-1993.46298652,0.00014916,2]
[401881520,1768395046800,-503.99870158,0.00014916,2]
[401881522,1768395046813,-2000.0,0.00014916,2]
[401881524,1768395046822,-2000.0,0.00014916,2]
[401881526,1768395046831,-2000.0,0.00014916,2]
[401881528,1768395046840,-2000.0,0.00014916,2]
[401881530,1768395046851,-2000.0,0.00014916,2]
[401881532,1768395046861,-2000.0,0.00014916,2]
[401881535,1768395046871,-1577.72950273,0.00014916,2]
[401881537,1768395046881,-1031.81939639,0.00014916,2]
[401881538,1768395046890,-2000.0,0.00014916,2]
[401881540,1768395046899,-2000.0,0.00014916,2]
[401881543,1768395046910,-2000.0,0.00014916,2]
[401881544,1768395046920,-2000.0,0.00014916,2]
[401881546,1768395046929,-1288.90612665,0.00014916,2]
[401881548,1768395046938,-1613.0,0.00014926,2]
[401881550,1768395046948,-948.0,0.00014926,2]
[401881552,1768395046957,-324.0,0.00014926,2]
[401881554,1768395046967,-8058.73779514,0.00014968,2]
[401881556,1768395046976,-12971.79218788,0.00014975,2]
[401881558,1768395046987,-2000.0,0.00015014,7]
[401881560,1768395046997,-800.0,0.00015068,2]
[401881562,1768395047007,-19313.50358939,0.000152,2]
[401881565,1768395047016,-1200.0,0.00015316,2]
[401881567,1768395047026,-944.61815177,0.00015318,2]
[401881569,1768395047035,-2000.0,0.00015342,2]
[401881570,1768395047044,-2000.0,0.00015342,2]
[401881572,1768395047053,-2000.0,0.00015342,2]
[401881574,1768395047063,-2094.03075988,0.00015342,2]
[401881577,1768395047072,-2000.0,0.00015342,2]
[401881578,1768395047082,-992.62086011,0.00015342,2]
[401881580,1768395047091,-2000.0,0.00015342,2]
[401881582,1768395047101,-2000.0,0.00015342,2]
[401881584,1768395047111,-655.35549971,0.00015342,2]
[401881587,1768395047120,-646.70021057,0.00015342,2]
[401881589,1768395047129,-503.42728186,0.00015342,2]
[401881590,1768395047138,-2000.0,0.00015342,2]
[401881592,1768395047148,-749.49335299,0.00015342,2]
[401881594,1768395047156,-735.30085754,0.00015342,2]
[401881596,1768395047166,-1873.84265648,0.00015342,2]
[401881599,1768395047176,-2000.0,0.00015342,2]
[401881601,1768395047185,-1000.0,0.00015391,2]
[401881603,1768395047195,-492.0,0.00015391,2]
[401881605,1768395047209,-633.2980032,0.000154,30]
[401881607,1768395047219,-2500.0,0.00015464,2]
[401881609,1768395047227,-2500.0,0.00015464,2]
[401881611,1768395047236,-2500.0,0.00015464,2]
[401881613,1768395047245,-1005.48440654,0.00015464,2]
[401881615,1768395047254,-2500.0,0.00015464,2]
[401881617,1768395047264,-2500.0,0.00015464,2]
[401881619,1768395047273,-2500.0,0.00015464,2]
[401881621,1768395047283,-2500.0,0.00015464,2]
[401881623,1768395047292,-2500.0,0.00015464,2]
[401881625,1768395047301,-2500.0,0.00015464,2]
[401881627,1768395047310,-2500.0,0.00015464,2]
[401881629,1768395047319,-2500.0,0.00015464,2]
[401881630,1768395047328,-229.77856011,0.00015601,2]
[401881632,1768395047338,-306.37141348,0.00015601,2]
[401881635,1768395047347,-153.18570674,0.00015601,2]
[401881637,1768395047357,-319.465204,0.00015864,7]
[401881639,1768395047367,-1500.0,0.00015864,2]
[401881640,1768395047375,-2500.0,0.0001589,2]
[401881643,1768395047385,-559.4878042,0.0001589,2]
[401881645,1768395047396,-1711.66599686,0.0001589,2]
[401881647,1768395047405,-2500.0,0.0001589,2]
[401881649,1768395047414,-2500.0,0.0001589,2]
[401881651,1768395047424,-2500.0,0.0001589,2]
[401881653,1768395047433,-238.98962,0.0001589,7]
[401881655,1768395047442,-2500.0,0.0001589,2]
[401881657,1768395047451,-6358.42937,0.0001589,7]
[401881659,1768395047461,-2500.0,0.0001589,2]
[401881661,1768395047470,-3000.0,0.00016012,2]
[401881663,1768395047479,-3000.0,0.00016012,2]
[401881665,1768395047489,-1671.14126243,0.00016012,2]
[401881667,1768395047498,-3000.0,0.00016012,2]
[401881669,1768395047507,-1185.37019291,0.00016012,2]
[401881671,1768395047516,-3000.0,0.00016012,2]
[401881673,1768395047526,-3000.0,0.00016012,2]
[401881675,1768395047535,-3000.0,0.00016012,2]
[401881677,1768395047544,-3000.0,0.00016012,2]
[401881679,1768395047553,-3000.0,0.00016012,2]
[401881681,1768395047563,-3000.0,0.00016012,2]
[401881683,1768395047572,-142945.171383,0.00016164,7]
[401881685,1768395047581,-1593.26413,0.00016164,7]
[401881687,1768395047590,-1600.0,0.00016164,2]
[401881689,1768395047599,-57178.068554,0.00016164,7]
[401881691,1768395047609,-620.66490016,0.0001617,30]
[401881693,1768395047618,-11463.10085462,0.00016298,9]
[401881695,1768395047627,-2000.0,0.00016329,7]
[401881697,1768395047636,-36653.234319,0.00016412,7]
[401881699,1768395047645,-14661.293727,0.00016412,7]
[401881701,1768395047654,-1800.0,0.00016412,2]
[401881703,1768395047663,-2258.0,0.00016419,2]
[401881705,1768395047672,-500.0,0.00016438,2]
[401881707,1768395047682,-500.0,0.00016438,2]
[401881709,1768395047691,-500.0,0.00016438,2]
[401881711,1768395047700,-500.0,0.00016438,2]
[401881713,1768395047709,-367.29391014,0.00016438,2]
[401881715,1768395047718,-500.0,0.00016438,2]
[401881717,1768395047727,-500.0,0.00016438,2]
[401881719,1768395047736,-595.30780858,0.00016438,2]
[401881721,1768395047745,-200.0,0.00016438,2]
[401881723,1768395047754,-164.26686219,0.00016438,2]
[401881725,1768395047763,-2544.67516775,0.00016438,2]
[401881727,1768395047772,-3000.0,0.00016438,2]
[401881729,1768395047781,-3000.0,0.00016438,2]
[401881731,1768395047790,-3000.0,0.00016438,2]
[401881732,1768395047799,-3000.0,0.00016438,2]
[401881734,1768395047811,-2819.68437302,0.00016438,2]
[401881736,1768395047820,-260.29560408,0.00016438,2]
[401881738,1768395047830,-184.29,0.0001644,2]
[401881740,1768395047839,-184.29,0.0001644,2]
[401881742,1768395047850,-184.29,0.0001644,2]
[401881744,1768395047859,-184.29,0.0001644,2]
[401881746,1768395047868,-200.0,0.00016473,2]
[401881748,1768395047877,-3500.0,0.0001656,2]
[401881750,1768395047887,-3500.0,0.0001656,2]
[401881752,1768395047896,-3500.0,0.0001656,2]
[401881754,1768395047905,-3500.0,0.0001656,2]
[401881756,1768395047915,-416.13825137,0.0001656,2]
[401881758,1768395047924,-3500.0,0.0001656,2]
[401881760,1768395047934,-3500.0,0.0001656,2]
[401881762,1768395047943,-3500.0,0.0001656,2]
[401881764,1768395047953,-3500.0,0.0001656,2]
[401881766,1768395047962,-11434.83681079,0.00016654,2]
[401881768,1768395047972,-1000.0,0.0001693,2]
[401881770,1768395047981,-791.0,0.0001693,2]
[401881772,1768395047991,-2100.0,0.0001696,2]
[401881774,1768395048001,-620.03324501,0.00016979,30]
[401881775,1768395048010,-3663.695123,0.00016979,7]
[401881777,1768395048020,-13738.856712,0.00016986,7]
[401881779,1768395048029,-798.663008,0.00016986,7]
[401881781,1768395048038,-3587.94374426,0.00016986,2]
[401881783,1768395048047,-270.0,0.00016986,2]